[Event "SWE-ch 2019"]
[Site "Eskilstuna"]
[Date "2019.07.06"]
[Round "1.1"]
[White "Hector, Jonny"]
[Black "Carlsson, Pontus"]
[Result "1-0"]
[ECO "B77"]
[WhiteElo "2487"]
[BlackElo "2456"]
[Annotator "ChessBase"]
[PlyCount "77"]
[EventDate "2019.07.06"]
[EventType "tourn"]
[EventCountry "SWE"]
[SourceTitle "playchess.com"]
[Source "ChessBase"]
[SourceQuality "1"]
[TimeControl "40/5400+30:1800+30"]

1. e4 {[%emt 0:00:00]} c5 {[%emt 0:12:43]} 2. Nf3 {[%emt 0:00:00]} d6 {[%emt 0:01:40]} 3. d4 {[%emt 0:00:05]} cxd4 {[%emt 0:00:10]} 4. Nxd4 {[%emt 0:00:05]} Nf6 {[%emt 0:00:17]} 5. Nc3 {[%emt 0:00:08]} g6 {[%emt 0:03:38]} 6. Be3 {[%emt 0:00:37]} Bg7 {[%emt 0:00:40]} 7. f3 {[%emt 0:00:29]} O-O {[%emt 0:00:12]} 8. Bc4 {[%emt 0:02:06]} Nc6 {[%emt 0:00:18]} 9. Qd2 {[%emt 0:01:19]} Bd7 {[%emt 0:00:15]} 10. O-O-O {[%emt 0:01:08]} Rb8 {[%emt 0:28:36]} 11. Bb3 {[%emt 0:06:17]} Na5 {[%emt 0:00:38]} 12. g4 {[%emt 0:09:04]} b5 {[%emt 0:00:18]} 13. Bh6 {[%emt 0:02:03]} Nxb3+ {[%emt 0:17:46]} 14. Nxb3 {[%emt 0:05:33]} Bxh6 {[%emt 0:07:04]} 15. Qxh6 {[%emt 0:00:27]} b4 {[%emt 0:02:28]} 16. Nd5 {[%emt 0:02:35]} Nxd5 {[%emt 0:00:03]} 17. exd5 {[%emt 0:00:37]} Rb6 {[%emt 0:02:26]} 18. h4 {[%emt 0:01:28]} e5 {[%emt 0:00:50]} 19. Nd2 {[%emt 0:01:19]} Ra6 {[%emt 0:09:13]} 20. Ne4 {[%emt 0:01:27]} f6 {[%emt 0:09:30]} 21. g5 {[%emt 0:05:05]} Bf5 {[%emt 0:00:02]} 22. Nxf6+ {[%emt 0:10:06]} Rxf6 {[%emt 0:00:01]} 23. gxf6 {[%emt 0:00:13]} Qxf6 {[%emt 0:00:02]} 24. Qe3 {[%emt 0:08:10]} Rxa2 {[%emt 0:01:24]} 25. Qb3 {[%emt 0:02:15]} Ra1+ {[%emt 0:00:47]} 26. Kd2 {[%emt 0:00:06]} Rxd1+ {[%emt 0:00:38]} 27. Kxd1 {[%emt 0:01:02]} Bd7 {[%emt 0:01:04]} 28. Qe3 {[%emt 0:07:46]} Qf7 {[%emt 0:00:35]} 29. Kc1 {[%emt 0:02:15]} Bf5 {[%emt 0:00:03]} 30. h5 gxh5 {[%emt 0:00:42]} 31. Rh4 {[%emt 0:13:41]} Qc7 {[%emt 0:00:37]} 32. Qb3 {[%emt 0:02:59]} Qc5 {[%emt 0:00:14]} 33. Kb1 {[%emt 0:00:25]} Bg6 {[%emt 0:00:47]} 34. Rc4 {[%emt 0:02:18]} Qg1+ {[%emt 0:00:15]} 35. Ka2 {[%emt 0:00:03]} a5 {[%emt 0:00:29]} 36. Qa4 {[%emt 0:02:02]} Qd1 {[%emt 0:00:43]} 37. Qxa5 {[%emt 0:00:47]} Bf7 {[%emt 0:00:46]} 38. Qd8+ {[%emt 0:00:36]} Kg7 {[%emt 0:00:26]} 39. Qg5+ {[%emt 0:00:20]} 1-0

[Event "SWE-ch 2019"]
[Site "Eskilstuna"]
[Date "2019.07.06"]
[Round "1.2"]
[White "Kucuksari, Kaan"]
[Black "Smith, Axel"]
[Result "1/2-1/2"]
[ECO "E04"]
[WhiteElo "2310"]
[BlackElo "2469"]
[Annotator "ChessBase"]
[PlyCount "79"]
[EventDate "2019.07.06"]
[EventType "tourn"]
[EventCountry "SWE"]
[SourceTitle "playchess.com"]
[Source "ChessBase"]
[SourceQuality "1"]
[TimeControl "40/5400+30:1800+30"]

1. d4 {[%emt 0:00:00]} e6 {[%emt 0:00:00]} 2. c4 {[%emt 0:00:09]} Nf6 {[%emt 0:00:00]} 3. g3 {[%emt 0:00:56]} d5 {[%emt 0:00:00]} 4. Bg2 {[%emt 0:00:50]} dxc4 {[%emt 0:00:01]} 5. Nf3 {[%emt 0:01:19]} c6 {[%emt 0:00:14]} 6. Ne5 {[%emt 0:01:00]} Bb4+ {[%emt 0:00:19]} 7. Bd2 {[%emt 0:01:15]} Be7 {[%emt 0:00:12]} 8. Bg5 {[%emt 0:07:48]} h6 {[%emt 0:03:27]} 9. Bxf6 {[%emt 0:00:41]} Bxf6 {[%emt 0:00:16]} 10. Na3 {[%emt 0:00:37]} c3 {[%emt 0:21:04]} 11. bxc3 {[%emt 0:00:03]} Bxe5 {[%emt 0:00:54]} 12. dxe5 {[%emt 0:00:01]} Qa5 {[%emt 0:00:25]} 13. Qb3 {[%emt 0:08:21]} Qxe5 {[%emt 0:00:10]} 14. Nc4 {[%emt 0:00:01]} Qc5 {[%emt 0:07:42]} 15. a4 {[%emt 0:06:06]} Nd7 {[%emt 0:09:08]} 16. a5 {[%emt 0:05:08]} Rb8 {[%emt 0:06:18]} 17. O-O {[%emt 0:02:50]} Ne5 {[%emt 0:10:15]} 18. Nxe5 Qxe5 {[%emt 0:00:01]} 19. Qa3 {[%emt 0:09:24]} c5 {[%emt 0:02:05]} 20. f4 {[%emt 0:11:17]} Qc7 {[%emt 0:02:25]} 21. c4 {[%emt 0:08:27]} O-O {[%emt 0:00:23]} 22. g4 {[%emt 0:00:49]} Rd8 {[%emt 0:03:16]} 23. g5 {[%emt 0:02:46]} hxg5 {[%emt 0:11:13]} 24. fxg5 {[%emt 0:00:01]} b5 {[%emt 0:00:19]} 25. axb6 {[%emt 0:12:43]} axb6 {[%emt 0:00:01]} 26. g6 {[%emt 0:00:08]} fxg6 {[%emt 0:00:35]} 27. Qe3 {[%emt 0:03:09]} Qd6 {[%emt 0:04:07]} 28. Qg5 {[%emt 0:02:11]} Bb7 {[%emt 0:07:13]} 29. Bxb7 {[%emt 0:07:16]} Rxb7 {[%emt 0:00:03]} 30. Ra3 {[%emt 0:00:02]} Rf8 {[%emt 0:04:54]} 31. Rxf8+ {[%emt 0:02:52]} Qxf8 {[%emt 0:00:01]} 32. Qxg6 {[%emt 0:00:15]} Re7 {[%emt 0:01:06]} 33. Qe4 {[%emt 0:00:14]} Qf5 {[%emt 0:02:28]} 34. Qa8+ {[%emt 0:01:27]} Kh7 {[%emt 0:00:03]} 35. Rf3 {[%emt 0:00:45]} Qg4+ {[%emt 0:02:47]} 36. Rg3 {[%emt 0:00:01]} Qxe2 {[%emt 0:01:39]} 37. Rh3+ {[%emt 0:00:23]} Kg6 {[%emt 0:00:02]} 38. Rg3+ {[%emt 0:00:03]} Kh7 {[%emt 0:00:10]} 39. Rh3+ {[%emt 0:00:03]} Kg6 {[%emt 0:00:01]} 40. Rg3+ {[%emt 0:00:11]} 1/2-1/2

[Event "SWE-ch 2019"]
[Site "Eskilstuna"]
[Date "2019.07.06"]
[Round "1.3"]
[White "Johansson, Linus"]
[Black "Hillarp Persson, Tiger"]
[Result "0-1"]
[ECO "E20"]
[WhiteElo "2480"]
[BlackElo "2562"]
[Annotator "ChessBase"]
[PlyCount "70"]
[EventDate "2019.07.06"]
[EventType "tourn"]
[EventCountry "SWE"]
[SourceTitle "playchess.com"]
[Source "ChessBase"]
[SourceQuality "1"]
[TimeControl "40/5400+30:1800+30"]

1. d4 {[%emt 0:00:17]} Nf6 {[%emt 0:00:00]} 2. c4 {[%emt 0:00:08]} e6 {[%emt 0:00:00]} 3. Nc3 {[%emt 0:00:04]} Bb4 {[%emt 0:00:00]} 4. Nf3 {[%emt 0:00:05]} O-O {[%emt 0:01:28]} 5. g3 {[%emt 0:00:09]} Bxc3+ {[%emt 0:02:00]} 6. bxc3 {[%emt 0:00:07]} d6 {[%emt 0:00:06]} 7. Bg2 {[%emt 0:01:41]} Nc6 {[%emt 0:02:50]} 8. O-O {[%emt 0:02:24]} e5 {[%emt 0:03:01]} 9. Ne1 {[%emt 0:13:17]} Re8 {[%emt 0:14:23]} 10. Nc2 {[%emt 0:03:33]} Na5 {[%emt 0:36:36]} 11. Ne3 {[%emt 0:15:37]} Be6 {[%emt 0:01:54]} 12. Qa4 {[%emt 0:09:09]} b6 {[%emt 0:14:06]} 13. f4 {[%emt 0:13:00]} exf4 {[%emt 0:02:54]} 14. Rxf4 {[%emt 0:02:01]} Rb8 {[%emt 0:00:36]} 15. Bd2 {[%emt 0:03:26]} Nxc4 {[%emt 0:03:03]} 16. Nxc4 {[%emt 0:00:58]} b5 {[%emt 0:00:06]} 17. Qc2 {[%emt 0:02:00]} Bxc4 {[%emt 0:00:09]} 18. e4 {[%emt 0:00:05]} d5 {[%emt 0:03:25]} 19. e5 {[%emt 0:01:36]} Ne4 {[%emt 0:00:21]} 20. Bxe4 {[%emt 0:00:32]} dxe4 {[%emt 0:00:08]} 21. Qxe4 {[%emt 0:02:51]} Rb6 {[%emt 0:00:26]} 22. a4 {[%emt 0:04:36]} Ra6 {[%emt 0:05:36]} 23. Rh4 {[%emt 0:03:40]} h6 {[%emt 0:00:09]} 24. Qg4 {[%emt 0:02:22]} Ree6 {[%emt 0:04:03]} 25. Qd1 {[%emt 0:02:29]} Qd5 {[%emt 0:02:26]} 26. a5 {[%emt 0:02:32]} b4 {[%emt 0:01:01]} 27. cxb4 {[%emt 0:00:08]} Bb5 {[%emt 0:00:07]} 28. Rf4 {[%emt 0:02:35]} Bc6 {[%emt 0:00:42]} 29. Kf2 {[%emt 0:03:41]} g5 {[%emt 0:00:43]} 30. Rg4 {[%emt 0:01:14]} f5 {[%emt 0:00:18]} 31. Bxg5 {[%emt 0:02:29]} fxg4 {[%emt 0:00:31]} 32. Qxg4 {[%emt 0:00:09]} Rg6 {[%emt 0:01:20]} 33. Qc8+ {[%emt 0:01:26]} Kh7 {[%emt 0:00:09]} 34. Qxa6 {[%emt 0:02:26]} Qxd4+ {[%emt 0:00:51]} 35. Be3 {[%emt 0:00:08]} Qxa1 {[%emt 0:00:09]} 0-1

[Event "SWE-ch 2019"]
[Site "Eskilstuna"]
[Date "2019.07.06"]
[Round "1.4"]
[White "Blomqvist, Erik"]
[Black "Wiedenkeller, Michael"]
[Result "1-0"]
[ECO "A07"]
[WhiteElo "2492"]
[BlackElo "2461"]
[Annotator "ChessBase"]
[PlyCount "101"]
[EventDate "2019.07.06"]
[EventType "tourn"]
[EventCountry "SWE"]
[SourceTitle "playchess.com"]
[Source "ChessBase"]
[SourceQuality "1"]
[TimeControl "40/5400+30:1800+30"]

1. Nf3 {[%emt 0:00:00]} d5 {[%emt 0:00:00]} 2. g3 {[%emt 0:00:00]} c6 {[%emt 0:00:10]} 3. Bg2 {[%emt 0:00:24]} Bg4 {[%emt 0:00:14]} 4. h3 {[%emt 0:00:21]} Bh5 {[%emt 0:00:45]} 5. O-O {[%emt 0:00:37]} Nd7 {[%emt 0:00:53]} 6. d3 {[%emt 0:00:22]} Ngf6 {[%emt 0:00:37]} 7. Qe1 {[%emt 0:00:27]} e5 {[%emt 0:01:23]} 8. e4 {[%emt 0:00:13]} dxe4 {[%emt 0:00:34]} 9. dxe4 {[%emt 0:00:06]} Bc5 {[%emt 0:04:35]} 10. a4 {[%emt 0:00:51]} a5 {[%emt 0:01:47]} 11. Nbd2 {[%emt 0:00:30]} O-O {[%emt 0:01:27]} 12. Nc4 {[%emt 0:00:36]} Re8 {[%emt 0:10:23]} 13. Bd2 {[%emt 0:00:54]} b6 {[%emt 0:01:14]} 14. Nh4 {[%emt 0:00:26]} Qc7 {[%emt 0:03:24]} 15. Kh1 {[%emt 0:04:20]} Rad8 {[%emt 0:08:48]} 16. f4 {[%emt 0:03:08]} exf4 {[%emt 0:02:59]} 17. Bxf4 {[%emt 0:00:43]} Qa7 {[%emt 0:10:41]} 18. g4 {[%emt 0:09:29]} Bg6 {[%emt 0:02:15]} 19. Nxg6 {[%emt 0:05:15]} hxg6 {[%emt 0:01:07]} 20. e5 {[%emt 0:08:10]} Nd5 {[%emt 0:01:48]} 21. Bg3 {[%emt 0:02:29]} Nf8 {[%emt 0:06:44]} 22. c3 {[%emt 0:05:23]} Ne6 {[%emt 0:03:31]} 23. h4 {[%emt 0:07:00]} g5 {[%emt 0:07:59]} 24. hxg5 {[%emt 0:27:25]} g6 {[%emt 0:01:56]} 25. Rd1 {[%emt 0:04:29]} Qe7 {[%emt 0:07:25]} 26. Bxd5 {[%emt 0:11:58]} cxd5 {[%emt 0:01:37]} 27. Nd6 {[%emt 0:00:05]} Bxd6 {[%emt 0:01:29]} 28. exd6 {[%emt 0:00:03]} Qxg5 {[%emt 0:00:17]} 29. Qf2 {[%emt 0:04:55]} Rd7 {[%emt 0:10:27]} 30. Qf3 {[%emt 0:01:11]} Qh6+ {[%emt 0:01:08]} 31. Kg2 {[%emt 0:02:27]} Ng5 {[%emt 0:00:54]} 32. Bf4 {[%emt 0:00:12]} Nxf3 {[%emt 0:06:39]} 33. Bxh6 {[%emt 0:00:04]} Ne5 {[%emt 0:00:17]} 34. Rxd5 {[%emt 0:01:03]} Nxg4 {[%emt 0:00:12]} 35. Bf4 {[%emt 0:00:38]} Ne3+ {[%emt 0:00:33]} 36. Bxe3 {[%emt 0:00:05]} Rxe3 {[%emt 0:00:02]} 37. Kf2 {[%emt 0:00:21]} Re4 {[%emt 0:00:52]} 38. Rfd1 {[%emt 0:00:12]} Re6 {[%emt 0:01:02]} 39. b4 {[%emt 0:00:16]} axb4 {[%emt 0:00:32]} 40. cxb4 {[%emt 0:00:02]} Kf8 {[%emt 0:00:44]} 41. a5 {[%emt 0:31:43]} bxa5 {[%emt 0:06:00]} 42. bxa5 {[%emt 0:00:00]} Ke8 {[%emt 0:01:04]} 43. a6 {[%emt 0:00:00]} Rd8 {[%emt 0:10:27]} 44. a7 {[%emt 0:00:00]} Kd7 {[%emt 0:01:35]} 45. Rb5 {[%emt 0:00:00]} Ra8 {[%emt 0:06:26]} 46. Rb7+ {[%emt 0:00:00]} Kc6 {[%emt 0:00:23]} 47. Rc7+ {[%emt 0:00:00]} Kb6 {[%emt 0:00:05]} 48. Rb1+ {[%emt 0:00:00]} Ka6 {[%emt 0:00:17]} 49. Rc2 {[%emt 0:00:00]} Rf6+ {[%emt 0:00:50]} 50. Kg3 {[%emt 0:00:00]} Rxd6 {[%emt 0:00:59]} 51. Ra2# {[%emt 0:00:00]} 1-0

[Event "SWE-ch 2019"]
[Site "Eskilstuna"]
[Date "2019.07.06"]
[Round "1.5"]
[White "Cramling, Pia"]
[Black "Sagit, Rauan"]
[Result "1/2-1/2"]
[ECO "E02"]
[WhiteElo "2479"]
[BlackElo "2429"]
[Annotator "ChessBase"]
[PlyCount "82"]
[EventDate "2019.07.06"]
[EventType "tourn"]
[EventCountry "SWE"]
[SourceTitle "playchess.com"]
[Source "ChessBase"]
[SourceQuality "1"]
[TimeControl "40/5400+30:1800+30"]

1. Nf3 {[%emt 0:00:00]} Nf6 {[%emt 0:00:34]} 2. c4 {[%emt 0:00:17]} e6 {[%emt 0:00:40]} 3. g3 {[%emt 0:01:26]} d5 {[%emt 0:00:21]} 4. d4 {[%emt 0:02:09]} Be7 {[%emt 0:00:14]} 5. Bg2 {[%emt 0:01:01]} O-O {[%emt 0:00:19]} 6. O-O {[%emt 0:02:38]} dxc4 {[%emt 0:00:55]} 7. Qa4 {[%emt 0:04:28]} Bd7 {[%emt 0:03:33]} 8. Qxc4 {[%emt 0:00:31]} Bc6 {[%emt 0:00:21]} 9. Bg5 {[%emt 0:15:00]} Nbd7 {[%emt 0:03:22]} 10. Nc3 {[%emt 0:02:10]} h6 {[%emt 0:02:45]} 11. Bxf6 {[%emt 0:01:37]} Nxf6 {[%emt 0:00:16]} 12. Rfe1 {[%emt 0:10:45]} Bxf3 {[%emt 0:05:38]} 13. Bxf3 {[%emt 0:00:13]} c6 {[%emt 0:00:25]} 14. e3 {[%emt 0:02:27]} Qa5 {[%emt 0:05:01]} 15. a3 {[%emt 0:02:34]} Rac8 {[%emt 0:04:04]} 16. Red1 {[%emt 0:05:54]} Rfd8 {[%emt 0:01:46]} 17. b4 {[%emt 0:05:12]} Qf5 {[%emt 0:01:19]} 18. Kg2 {[%emt 0:02:53]} Qg6 {[%emt 0:08:49]} 19. Rac1 {[%emt 0:02:18]} h5 {[%emt 0:07:33]} 20. Qd3 {[%emt 0:07:51]} Qxd3 21. Rxd3 {[%emt 0:00:01]} e5 {[%emt 0:04:37]} 22. Rcd1 {[%emt 0:02:26]} exd4 {[%emt 0:00:18]} 23. Rxd4 {[%emt 0:01:32]} Rxd4 {[%emt 0:01:15]} 24. Rxd4 {[%emt 0:00:46]} g6 {[%emt 0:01:01]} 25. Ne4 {[%emt 0:04:56]} Rc7 {[%emt 0:01:18]} 26. Nxf6+ {[%emt 0:01:17]} Bxf6 {[%emt 0:00:12]} 27. Rd3 {[%emt 0:01:17]} Kf8 {[%emt 0:03:15]} 28. Kf1 {[%emt 0:01:04]} Ke7 {[%emt 0:02:16]} 29. Ke2 {[%emt 0:01:18]} b6 {[%emt 0:01:00]} 30. Rd2 {[%emt 0:01:51]} c5 {[%emt 0:04:39]} 31. Rc2 {[%emt 0:00:14]} c4 {[%emt 0:04:15]} 32. Bd5 {[%emt 0:00:26]} b5 {[%emt 0:00:47]} 33. f4 {[%emt 0:00:13]} a6 {[%emt 0:00:59]} 34. e4 {[%emt 0:04:18]} Bd4 {[%emt 0:06:10]} 35. Rd2 {[%emt 0:00:39]} c3 {[%emt 0:02:39]} 36. Rc2 {[%emt 0:00:24]} Bg7 {[%emt 0:03:41]} 37. Kd3 {[%emt 0:08:51]} Rd7 {[%emt 0:02:57]} 38. Re2 {[%emt 0:00:23]} Rc7 {[%emt 0:04:24]} 39. Rc2 {[%emt 0:01:47]} Rd7 {[%emt 0:05:54]} 40. Re2 {[%emt 0:00:20]} Rc7 {[%emt 0:00:59]} 41. Rc2 {[%emt 0:34:23]} Rd7 {[%emt 0:30:45]} 1/2-1/2

[Event "SWE-ch 2019"]
[Site "Eskilstuna"]
[Date "2019.07.07"]
[Round "2.1"]
[White "Carlsson, Pontus"]
[Black "Smith, Axel"]
[Result "0-1"]
[ECO "C07"]
[WhiteElo "2456"]
[BlackElo "2469"]
[Annotator "ChessBase"]
[PlyCount "82"]
[EventDate "2019.07.06"]
[EventType "tourn"]
[EventCountry "SWE"]
[SourceTitle "playchess.com"]
[Source "ChessBase"]
[SourceQuality "1"]
[TimeControl "40/5400+30:1800+30"]

1. e4 {[%emt 0:14:47]} e6 {[%emt 0:00:00]} 2. d4 {[%emt 0:00:28]} d5 {[%emt 0:00:00]} 3. Nd2 {[%emt 0:04:11]} c5 {[%emt 0:00:00]} 4. Ngf3 {[%emt 0:03:53]} cxd4 {[%emt 0:00:00]} 5. Nxd4 {[%emt 0:05:12]} Nf6 {[%emt 0:00:08]} 6. exd5 {[%emt 0:06:29]} Qxd5 {[%emt 0:00:04]} 7. Nb5 {[%emt 0:00:47]} Na6 {[%emt 0:00:06]} 8. c4 {[%emt 0:04:27]} Qd7 {[%emt 0:08:10]} 9. Be2 {[%emt 0:00:51]} Nc7 {[%emt 0:03:58]} 10. Nc3 {[%emt 0:18:10]} Bc5 {[%emt 0:00:41]} 11. O-O {[%emt 0:00:22]} O-O {[%emt 0:00:15]} 12. Nf3 {[%emt 0:04:05]} Qe7 {[%emt 0:09:36]} 13. Bg5 {[%emt 0:02:38]} h6 {[%emt 0:01:06]} 14. Bh4 {[%emt 0:01:15]} Rd8 {[%emt 0:09:25]} 15. Qc1 {[%emt 0:01:15]} Qf8 {[%emt 0:01:04]} 16. Ne5 {[%emt 0:05:23]} Nce8 {[%emt 0:05:37]} 17. Bf3 {[%emt 0:00:50]} Be7 {[%emt 0:05:02]} 18. a3 {[%emt 0:14:39]} Nd6 {[%emt 0:00:44]} 19. b4 {[%emt 0:00:25]} Nf5 {[%emt 0:00:41]} 20. Bg3 {[%emt 0:00:03]} Nd4 {[%emt 0:07:55]} 21. Bd1 {[%emt 0:01:21]} b6 {[%emt 0:01:01]} 22. Nb5 {[%emt 0:01:04]} Bb7 {[%emt 0:08:23]} 23. Nxd4 {[%emt 0:00:26]} Rxd4 {[%emt 0:00:01]} 24. Qe3 {[%emt 0:01:53]} Rad8 {[%emt 0:08:39]} 25. Bf3 {[%emt 0:00:11]} Bxf3 {[%emt 0:00:18]} 26. Qxf3 {[%emt 0:04:33]} Ne4 {[%emt 0:00:38]} 27. Bf4 {[%emt 0:03:08]} Nd2 {[%emt 0:21:36]} 28. Bxd2 {[%emt 0:00:03]} Rxd2 {[%emt 0:00:04]} 29. Rad1 {[%emt 0:01:04]} Rxd1 {[%emt 0:05:07]} 30. Rxd1 {[%emt 0:00:02]} Rxd1+ {[%emt 0:00:04]} 31. Qxd1 {[%emt 0:00:01]} a5 {[%emt 0:00:05]} 32. c5 {[%emt 0:01:08]} axb4 {[%emt 0:02:10]} 33. axb4 {[%emt 0:00:46]} bxc5 {[%emt 0:00:07]} 34. b5 {[%emt 0:00:04]} Qa8 {[%emt 0:03:27]} 35. Nc4 {[%emt 0:01:04]} Qa2 {[%emt 0:00:29]} 36. Ne5 {[%emt 0:00:25]} Qb2 {[%emt 0:00:29]} 37. Nc6 {[%emt 0:00:11]} Bf8 {[%emt 0:00:44]} 38. Qf1 {[%emt 0:00:13]} Qb3 {[%emt 0:00:24]} 39. Na5 {[%emt 0:00:30]} Qa4 {[%emt 0:00:29]} 40. Nc6 {[%emt 0:00:47]} c4 {[%emt 0:00:32]} 41. Ne5 {[%emt 0:07:58]} c3 {[%emt 0:03:23]} 0-1

[Event "SWE-ch 2019"]
[Site "Eskilstuna"]
[Date "2019.07.07"]
[Round "2.2"]
[White "Hector, Jonny"]
[Black "Johansson, Linus"]
[Result "1/2-1/2"]
[ECO "B30"]
[WhiteElo "2487"]
[BlackElo "2480"]
[Annotator "ChessBase"]
[PlyCount "118"]
[EventDate "2019.07.06"]
[EventType "tourn"]
[EventCountry "SWE"]
[SourceTitle "playchess.com"]
[Source "ChessBase"]
[SourceQuality "1"]
[TimeControl "40/5400+30:1800+30"]

1. e4 {[%emt 0:00:00]} c5 {[%emt 0:00:00]} 2. Nf3 {[%emt 0:00:32]} Nc6 {[%emt 0:00:00]} 3. Nc3 {[%emt 0:00:22]} e5 {[%emt 0:00:00]} 4. Bc4 {[%emt 0:00:19]} Be7 {[%emt 0:00:00]} 5. d3 {[%emt 0:00:14]} Nf6 {[%emt 0:00:00]} 6. Nd2 {[%emt 0:04:35]} d6 {[%emt 0:01:17]} 7. Nf1 {[%emt 0:00:14]} O-O {[%emt 0:00:25]} 8. Ne3 {[%emt 0:00:42]} Nd7 {[%emt 0:00:09]} 9. a3 {[%emt 0:05:40]} Nb6 {[%emt 0:00:38]} 10. Ba2 {[%emt 0:00:20]} Bg5 {[%emt 0:06:15]} 11. h4 {[%emt 0:03:52]} Bxe3 {[%emt 0:04:53]} 12. Bxe3 {[%emt 0:02:27]} Nd4 {[%emt 0:02:10]} 13. h5 {[%emt 0:17:29]} Be6 {[%emt 0:08:24]} 14. h6 {[%emt 0:01:00]} g6 {[%emt 0:00:32]} 15. Nd5 {[%emt 0:00:48]} Rc8 {[%emt 0:09:04]} 16. c3 {[%emt 0:03:23]} Bxd5 {[%emt 0:03:21]} 17. exd5 {[%emt 0:00:43]} Nf5 {[%emt 0:11:38]} 18. Bc1 {[%emt 0:00:41]} Ne7 {[%emt 0:16:34]} 19. Qf3 {[%emt 0:06:29]} f6 {[%emt 0:00:21]} 20. O-O {[%emt 0:09:10]} Qd7 {[%emt 0:01:34]} 21. Rd1 {[%emt 0:02:03]} Qf5 {[%emt 0:02:48]} 22. Qe2 {[%emt 0:09:05]} Rfe8 {[%emt 0:06:40]} 23. c4 {[%emt 0:04:28]} Qd7 {[%emt 0:02:39]} 24. b4 {[%emt 0:00:36]} Nf5 {[%emt 0:01:22]} 25. bxc5 {[%emt 0:01:06]} Nd4 {[%emt 0:03:49]} 26. Qe3 {[%emt 0:03:15]} dxc5 {[%emt 0:03:01]} 27. Rb1 {[%emt 0:00:58]} Rc7 {[%emt 0:03:07]} 28. Bb2 {[%emt 0:01:56]} Nc8 {[%emt 0:01:28]} 29. Rd2 {[%emt 0:03:38]} Nd6 {[%emt 0:00:47]} 30. Rf1 {[%emt 0:00:39]} Qg4 {[%emt 0:02:27]} 31. f3 {[%emt 0:04:27]} Qg3 {[%emt 0:01:51]} 32. Rdf2 {[%emt 0:01:41]} f5 {[%emt 0:03:39]} 33. Re1 {[%emt 0:07:41]} f4 {[%emt 0:00:56]} 34. Qd2 {[%emt 0:00:14]} Rce7 {[%emt 0:00:32]} 35. Bxd4 {[%emt 0:03:44]} exd4 {[%emt 0:00:06]} 36. Re4 {[%emt 0:01:57]} Nxe4 {[%emt 0:01:06]} 37. fxe4 {[%emt 0:00:24]} Qe3 {[%emt 0:00:50]} 38. Qd1 {[%emt 0:00:13]} Re5 {[%emt 0:02:44]} 39. Qg4 {[%emt 0:01:20]} Qe1+ {[%emt 0:00:50]} 40. Rf1 {[%emt 0:00:18]} Qe3+ {[%emt 0:00:07]} 41. Rf2 {[%emt 0:30:06]} f3 {[%emt 0:04:18]} 42. Qxf3 {[%emt 0:00:00]} Qxh6 {[%emt 0:01:21]} 43. Qf7+ {[%emt 0:00:00]} Kh8 {[%emt 0:00:37]} 44. Bb3 {[%emt 0:00:00]} Qg7 {[%emt 0:01:18]} 45. Ba4 {[%emt 0:00:00]} Rd8 {[%emt 0:03:03]} 46. Bd1 {[%emt 0:00:00]} Re7 {[%emt 0:02:57]} 47. Qf4 {[%emt 0:00:00]} Kg8 {[%emt 0:03:16]} 48. Bg4 {[%emt 0:00:00]} Rf8 {[%emt 0:02:18]} 49. Qd6 {[%emt 0:00:00]} Rxf2 {[%emt 0:01:59]} 50. Kxf2 {[%emt 0:00:00]} Qf8+ {[%emt 0:01:00]} 51. Kg3 {[%emt 0:00:00]} Rf7 {[%emt 0:01:53]} 52. Qe5 {[%emt 0:00:00]} Rf6 {[%emt 0:00:08]} 53. Be6+ {[%emt 0:00:00]} Kg7 {[%emt 0:00:05]} 54. Qc7+ {[%emt 0:00:00]} Kh6 {[%emt 0:00:19]} 55. Kg4 {[%emt 0:00:00]} Rf2 {[%emt 0:02:40]} 56. Qh2+ {[%emt 0:00:00]} Kg7 {[%emt 0:00:05]} 57. Qc7+ {[%emt 0:00:00]} Kh6 {[%emt 0:00:42]} 58. Qh2+ {[%emt 0:00:00]} Kg7 {[%emt 0:00:05]} 59. Qc7+ {[%emt 0:00:05]} Kh6 {[%emt 0:00:05]} 1/2-1/2

[Event "SWE-ch 2019"]
[Site "Eskilstuna"]
[Date "2019.07.07"]
[Round "2.4"]
[White "Hillarp Persson, Tiger"]
[Black "Blomqvist, Erik"]
[Result "1-0"]
[ECO "D00"]
[WhiteElo "2562"]
[BlackElo "2492"]
[Annotator "ChessBase"]
[PlyCount "47"]
[EventDate "2019.07.06"]
[EventType "tourn"]
[EventCountry "SWE"]
[SourceTitle "playchess.com"]
[Source "ChessBase"]
[SourceQuality "1"]
[TimeControl "40/5400+30:1800+30"]

1. d4 {[%emt 0:00:00]} Nf6 {[%emt 0:00:00]} 2. Bg5 {[%emt 0:00:00]} d5 {[%emt 0:00:26]} 3. e3 {[%emt 0:00:09]} c5 {[%emt 0:03:50]} 4. Bxf6 {[%emt 0:01:07]} gxf6 {[%emt 0:00:07]} 5. dxc5 {[%emt 0:02:06]} e6 {[%emt 0:00:47]} 6. c4 {[%emt 0:00:57]} dxc4 {[%emt 0:01:03]} 7. Qxd8+ {[%emt 0:00:48]} Kxd8 {[%emt 0:00:07]} 8. Bxc4 {[%emt 0:00:47]} Bxc5 {[%emt 0:00:26]} 9. Nd2 {[%emt 0:05:23]} Bd7 {[%emt 0:04:16]} 10. Ngf3 {[%emt 0:00:59]} Ke7 {[%emt 0:02:24]} 11. O-O {[%emt 0:12:48]} Bc6 {[%emt 0:05:59]} 12. Be2 {[%emt 0:25:59]} Nd7 {[%emt 0:04:24]} 13. Rfc1 {[%emt 0:07:56]} Rac8 {[%emt 0:05:09]} 14. Kf1 {[%emt 0:19:42]} f5 {[%emt 0:04:13]} 15. Rc2 {[%emt 0:08:12]} Bxf3 {[%emt 0:27:14]} 16. Nxf3 {[%emt 0:00:39]} Bd6 {[%emt 0:02:50]} 17. Rac1 {[%emt 0:00:08]} Rxc2 {[%emt 0:00:08]} 18. Rxc2 {[%emt 0:00:05]} f4 {[%emt 0:09:49]} 19. exf4 {[%emt 0:00:15]} Bxf4 {[%emt 0:00:06]} 20. g3 {[%emt 0:01:22]} Bd6 {[%emt 0:00:35]} 21. Nd2 {[%emt 0:00:21]} f5 {[%emt 0:01:17]} 22. Nb3 {[%emt 0:01:44]} b6 {[%emt 0:02:51]} 23. Nd4 {[%emt 0:00:28]} a5 {[%emt 0:18:12]} 24. Nc6+ {[%emt 0:00:21]} 1-0